[Event "Late-Titled-Tuesday-Blitz-September-12-2023"]
[Site "Chess.com"]
[Date "2023.09.12"]
[Round "6"]
[White "reevecanada"]
[Black "KamlaPasand"]
[Result "0-1"]
[WhiteElo "2487"]
[BlackElo "2296"]
[TimeControl "180+1"]
[EndTime "15:00:44 PDT"]
[Termination "KamlaPasand won by resignation"]

1. e4 {[%clk 0:03:00.9]} 1... e5 {[%clk 0:02:59.9]} 2. Nf3 {[%clk 0:02:58.7]}
2... Nc6 {[%clk 0:02:59.9]} 3. d4 {[%clk 0:02:57.7]} 3... exd4 {[%clk
0:02:59.9]} 4. Nxd4 {[%clk 0:02:58.6]} 4... Bc5 {[%clk 0:02:59.7]} 5. Nb3 {[%clk
0:02:58.7]} 5... Bb6 {[%clk 0:03:00.2]} 6. Nc3 {[%clk 0:02:58.9]} 6... Nf6
{[%clk 0:03:00.4]} 7. Qe2 {[%clk 0:02:59.6]} 7... d6 {[%clk 0:02:59.8]} 8. Be3
{[%clk 0:03:00.2]} 8... O-O {[%clk 0:02:58.8]} 9. O-O-O {[%clk 0:03:00.2]} 9...
Be6 {[%clk 0:02:57.5]} 10. f3 {[%clk 0:03:00.5]} 10... Bxe3+ {[%clk 0:02:54.7]}
11. Qxe3 {[%clk 0:03:00.2]} 11... a5 {[%clk 0:02:55.6]} 12. g4 {[%clk 0:03:00]}
12... a4 {[%clk 0:02:55.6]} 13. Nd4 {[%clk 0:03:00.2]} 13... Nxd4 {[%clk
0:02:55]} 14. Rxd4 {[%clk 0:03:01.1]} 14... a3 {[%clk 0:02:55.3]} 15. b3 {[%clk
0:03:00.5]} 15... Nd7 {[%clk 0:02:54.8]} 16. h4 {[%clk 0:02:59.4]} 16... f6
{[%clk 0:02:51]} 17. Be2 {[%clk 0:02:58.6]} 17... Bf7 {[%clk 0:02:50.9]} 18. f4
{[%clk 0:02:58.7]} 18... Nc5 {[%clk 0:02:50.4]} 19. h5 {[%clk 0:02:58.7]} 19...
Qe7 {[%clk 0:02:49.6]} 20. g5 {[%clk 0:02:56.9]} 20... fxg5 {[%clk 0:02:49.6]}
21. fxg5 {[%clk 0:02:56.7]} 21... g6 {[%clk 0:02:48.2]} 22. hxg6 {[%clk
0:02:55.6]} 22... Bxg6 {[%clk 0:02:47.8]} 23. Nd5 {[%clk 0:02:55.8]} 23... Qe5
{[%clk 0:02:47.4]} 24. c3 {[%clk 0:02:37.8]} 24... Nxe4 {[%clk 0:02:45.8]} 25.
Bd3 {[%clk 0:02:33.7]} 25... Nf2 {[%clk 0:02:41.1]} 26. Ne7+ {[%clk 0:02:07.2]}
26... Kg7 {[%clk 0:02:32]} 27. Qxe5+ {[%clk 0:01:53.6]} 27... dxe5 {[%clk
0:02:32.9]} 28. Rd7 {[%clk 0:01:53.5]} 28... Nxd3+ {[%clk 0:02:25.3]} 29. Kd2
{[%clk 0:01:53]} 29... Rfd8 {[%clk 0:02:19.5]} 30. Rxc7 {[%clk 0:01:37]} 30...
Nf2+ {[%clk 0:02:16]} 31. Nd5+ {[%clk 0:01:31.3]} 31... Kh8 {[%clk 0:02:12]} 32.
c4 {[%clk 0:01:30.5]} 32... Nxh1 {[%clk 0:02:11.8]} 33. Ke3 {[%clk 0:01:31.2]}
33... Ng3 {[%clk 0:02:11.3]} 34. Rxb7 {[%clk 0:01:31.2]} 34... Ne4 {[%clk
0:02:07.3]} 35. b4 {[%clk 0:01:28.9]} 35... Nxg5 {[%clk 0:02:07]} 36. Nf6 {[%clk
0:01:26.3]} 0-1

[Event "Late-Titled-Tuesday-Blitz-September-12-2023"]
[Site "Chess.com"]
[Date "2023.09.12"]
[Round "6"]
[White "Zkid"]
[Black "Mikasinski"]
[Result "1-0"]
[WhiteElo "2924"]
[BlackElo "2673"]
[TimeControl "180+1"]
[EndTime "15:01:00 PDT"]
[Termination "Zkid won by resignation"]

1. e4 {[%clk 0:03:00.9]} 1... c5 {[%clk 0:02:46.7]} 2. Nf3 {[%clk 0:03:00.4]}
2... d6 {[%clk 0:02:47]} 3. d4 {[%clk 0:03:00.7]} 3... cxd4 {[%clk 0:02:47.9]}
4. Nxd4 {[%clk 0:03:01.4]} 4... Nf6 {[%clk 0:02:48.1]} 5. f3 {[%clk 0:03:01.8]}
5... e5 {[%clk 0:02:47.2]} 6. Nb3 {[%clk 0:03:01.9]} 6... d5 {[%clk 0:02:47.5]}
7. Bg5 {[%clk 0:03:02]} 7... d4 {[%clk 0:02:46.6]} 8. c3 {[%clk 0:03:02.3]} 8...
Nc6 {[%clk 0:02:44.8]} 9. Bb5 {[%clk 0:03:02.4]} 9... dxc3 {[%clk 0:02:43]} 10.
Qxd8+ {[%clk 0:03:00.6]} 10... Kxd8 {[%clk 0:02:43.3]} 11. Nxc3 {[%clk
0:02:59.7]} 11... Bd7 {[%clk 0:02:37.1]} 12. O-O-O {[%clk 0:02:50.9]} 12... Ke8
{[%clk 0:02:26.8]} 13. Bxf6 {[%clk 0:02:42]} 13... gxf6 {[%clk 0:02:27.1]} 14.
Nd5 {[%clk 0:02:42.5]} 14... Rc8 {[%clk 0:02:15.9]} 15. Nxf6+ {[%clk 0:02:37]}
15... Ke7 {[%clk 0:02:16]} 16. Nxd7 {[%clk 0:02:31.4]} 16... Nd4+ {[%clk
0:02:09.5]} 17. Kb1 {[%clk 0:02:30.5]} 17... Nxb5 {[%clk 0:02:07.6]} 18. Nxf8
{[%clk 0:02:20.1]} 18... Rhxf8 {[%clk 0:02:02.7]} 19. Rd5 {[%clk 0:02:19]} 19...
a6 {[%clk 0:02:00]} 20. Rxe5+ {[%clk 0:02:18]} 20... Kf6 {[%clk 0:02:00.7]} 21.
Rd5 {[%clk 0:02:13.9]} 21... Rfd8 {[%clk 0:01:52.6]} 22. Rhd1 {[%clk 0:02:13.2]}
22... Rxd5 {[%clk 0:01:53.1]} 23. Rxd5 {[%clk 0:02:14.1]} 23... b6 {[%clk
0:01:49.5]} 24. a4 {[%clk 0:02:11.6]} 24... Nc7 {[%clk 0:01:47.8]} 25. Rd6+
{[%clk 0:02:12.1]} 25... Ne6 {[%clk 0:01:48.5]} 26. Rxb6 {[%clk 0:02:11.8]}
26... Ke5 {[%clk 0:01:48.5]} 27. Rxa6 {[%clk 0:02:10.9]} 27... Kf4 {[%clk
0:01:49]} 28. Ra5 {[%clk 0:02:08.6]} 28... Ke3 {[%clk 0:01:49.1]} 29. Rf5 {[%clk
0:02:06.9]} 29... Rc7 {[%clk 0:01:49]} 30. a5 {[%clk 0:02:04.7]} 30... Kf2
{[%clk 0:01:48.9]} 31. g4 {[%clk 0:02:04.4]} 31... Kg2 {[%clk 0:01:47.3]} 32. h4
{[%clk 0:01:48.5]} 32... Kg3 {[%clk 0:01:43.6]} 33. h5 {[%clk 0:01:48.3]} 33...
Nf4 {[%clk 0:01:44.2]} 34. Nd4 {[%clk 0:01:46.3]} 34... Rd7 {[%clk 0:01:43.5]}
35. Nc6 {[%clk 0:01:44.9]} 35... Rd1+ {[%clk 0:01:39.5]} 36. Ka2 {[%clk
0:01:41.8]} 36... Kxf3 {[%clk 0:01:39.6]} 37. a6 {[%clk 0:01:41.7]} 1-0

[Event "Late-Titled-Tuesday-Blitz-September-12-2023"]
[Site "Chess.com"]
[Date "2023.09.12"]
[Round "6"]
[White "bazar-wokzal"]
[Black "micke12a"]
[Result "1-0"]
[WhiteElo "2576"]
[BlackElo "2394"]
[TimeControl "180+1"]
[EndTime "15:01:12 PDT"]
[Termination "bazar-wokzal won by checkmate"]

1. e4 {[%clk 0:03:00.9]} 1... c5 {[%clk 0:02:59.6]} 2. c3 {[%clk 0:03:00.9]}
2... e6 {[%clk 0:02:58]} 3. d4 {[%clk 0:03:00.8]} 3... d5 {[%clk 0:02:57]} 4. e5
{[%clk 0:03:01.2]} 4... Nc6 {[%clk 0:02:56.3]} 5. Nf3 {[%clk 0:03:01]} 5... cxd4
{[%clk 0:02:54.5]} 6. cxd4 {[%clk 0:03:01]} 6... Bb4+ {[%clk 0:02:53.7]} 7. Nc3
{[%clk 0:03:01]} 7... Nge7 {[%clk 0:02:53.8]} 8. Bd3 {[%clk 0:03:00.9]} 8... Qb6
{[%clk 0:02:49.9]} 9. O-O {[%clk 0:02:59.9]} 9... O-O {[%clk 0:02:47.7]} 10.
Bxh7+ {[%clk 0:02:57.7]} 10... Kxh7 {[%clk 0:02:47.3]} 11. Ng5+ {[%clk
0:02:57.7]} 11... Kg6 {[%clk 0:02:44.1]} 12. h4 {[%clk 0:02:30.6]} 12... Qxd4
{[%clk 0:02:08.1]} 13. h5+ {[%clk 0:02:19.5]} 13... Kf5 {[%clk 0:02:07.5]} 14.
Qf3+ {[%clk 0:02:01.3]} 14... Kxe5 {[%clk 0:02:04.3]} 15. Nb5 {[%clk 0:01:32.3]}
15... Qh4 {[%clk 0:01:47.6]} 16. g3 {[%clk 0:01:19.1]} 16... Qc4 {[%clk
0:01:16.3]} 17. Bf4+ {[%clk 0:01:13.4]} 17... Kf6 {[%clk 0:01:13.3]} 18. Nh7+
{[%clk 0:01:11.7]} 18... Kf5 {[%clk 0:01:11.1]} 19. g4# {[%clk 0:01:11.6]} 1-0

[Event "Late-Titled-Tuesday-Blitz-September-12-2023"]
[Site "Chess.com"]
[Date "2023.09.12"]
[Round "6"]
[White "AleksandrAleksikov"]
[Black "Chessdemon2019"]
[Result "0-1"]
[WhiteElo "2239"]
[BlackElo "2385"]
[TimeControl "180+1"]
[EndTime "15:01:22 PDT"]
[Termination "Chessdemon2019 won by resignation"]

1. e4 {[%clk 0:03:00.9]} 1... c5 {[%clk 0:02:58]} 2. Nf3 {[%clk 0:02:59.3]} 2...
d6 {[%clk 0:02:57.9]} 3. d4 {[%clk 0:02:58.7]} 3... cxd4 {[%clk 0:02:57.9]} 4.
Nxd4 {[%clk 0:02:58.9]} 4... Nf6 {[%clk 0:02:58.4]} 5. Nc3 {[%clk 0:02:58.5]}
5... a6 {[%clk 0:02:58.9]} 6. Be2 {[%clk 0:02:57]} 6... e5 {[%clk 0:02:59.1]} 7.
Nb3 {[%clk 0:02:55.5]} 7... Be6 {[%clk 0:02:59]} 8. O-O {[%clk 0:02:55.2]} 8...
Be7 {[%clk 0:02:59.1]} 9. f4 {[%clk 0:02:54]} 9... Nc6 {[%clk 0:02:57.4]} 10. f5
{[%clk 0:02:52]} 10... Bxb3 {[%clk 0:02:55.8]} 11. axb3 {[%clk 0:02:50.9]} 11...
h6 {[%clk 0:02:49.1]} 12. Kh1 {[%clk 0:02:49.3]} 12... b5 {[%clk 0:02:46.4]} 13.
Be3 {[%clk 0:02:41.7]} 13... O-O {[%clk 0:02:38.4]} 14. Bf3 {[%clk 0:02:33.5]}
14... Qc7 {[%clk 0:02:31.7]} 15. g4 {[%clk 0:02:30.7]} 15... b4 {[%clk 0:02:26]}
16. Nd5 {[%clk 0:02:29.3]} 16... Nxd5 {[%clk 0:02:26.3]} 17. Qxd5 {[%clk
0:02:29.2]} 17... Bg5 {[%clk 0:02:23.1]} 18. Bg1 {[%clk 0:02:27.1]} 18... Ne7
{[%clk 0:02:21.9]} 19. Qd3 {[%clk 0:02:25.5]} 19... Rfc8 {[%clk 0:02:18.9]} 20.
Rf2 {[%clk 0:02:03.5]} 20... Nc6 {[%clk 0:02:18.7]} 21. Re2 {[%clk 0:02:01.7]}
21... Nd4 {[%clk 0:02:14.7]} 22. Bxd4 {[%clk 0:01:58.4]} 22... exd4 {[%clk
0:02:15.1]} 23. Qxd4 {[%clk 0:01:58.4]} 23... Bf6 {[%clk 0:02:11.5]} 24. Qxb4
{[%clk 0:01:57.3]} 24... Bxb2 {[%clk 0:02:09.6]} 25. Rd1 {[%clk 0:01:53.7]}
25... Be5 {[%clk 0:02:09.4]} 26. Rd3 {[%clk 0:01:36.8]} 26... a5 {[%clk
0:02:06.6]} 27. Qa4 {[%clk 0:01:35.9]} 27... Qe7 {[%clk 0:02:04.5]} 28. c4
{[%clk 0:01:22.9]} 28... Qg5 {[%clk 0:02:02.1]} 29. Qa3 {[%clk 0:01:19]} 29...
a4 {[%clk 0:01:58.4]} 30. bxa4 {[%clk 0:01:07.8]} 30... Rxc4 {[%clk 0:01:57.4]}
31. Rd1 {[%clk 0:01:01.7]} 31... Rc3 {[%clk 0:01:57.1]} 0-1

[Event "Late-Titled-Tuesday-Blitz-September-12-2023"]
[Site "Chess.com"]
[Date "2023.09.12"]
[Round "6"]
[White "carloseduar100"]
[Black "gunslinger222"]
[Result "1-0"]
[WhiteElo "2283"]
[BlackElo "2399"]
[TimeControl "180+1"]
[EndTime "15:01:51 PDT"]
[Termination "carloseduar100 won by resignation"]

1. e4 {[%clk 0:02:42.2]} 1... e6 {[%clk 0:02:59.5]} 2. d3 {[%clk 0:02:41.9]}
2... d5 {[%clk 0:02:59.9]} 3. Nd2 {[%clk 0:02:42.8]} 3... c5 {[%clk 0:02:59.9]}
4. g3 {[%clk 0:02:43.7]} 4... Nc6 {[%clk 0:03:00.5]} 5. Bg2 {[%clk 0:02:43.9]}
5... Bd6 {[%clk 0:03:01.2]} 6. Ngf3 {[%clk 0:02:44.8]} 6... Nge7 {[%clk
0:03:00.8]} 7. O-O {[%clk 0:02:45.7]} 7... Qc7 {[%clk 0:03:01.1]} 8. c3 {[%clk
0:02:46.4]} 8... Bd7 {[%clk 0:03:01.3]} 9. Qe2 {[%clk 0:02:47.1]} 9... f6 {[%clk
0:03:01.6]} 10. a3 {[%clk 0:02:46.7]} 10... a5 {[%clk 0:02:57.2]} 11. Re1 {[%clk
0:02:44.8]} 11... O-O {[%clk 0:02:57]} 12. d4 {[%clk 0:02:45.2]} 12... Rae8
{[%clk 0:02:23.5]} 13. e5 {[%clk 0:02:33.2]} 13... fxe5 {[%clk 0:02:18]} 14.
dxe5 {[%clk 0:02:33]} 14... Nxe5 {[%clk 0:01:40.3]} 15. Nxe5 {[%clk 0:02:24.6]}
15... Bb5 {[%clk 0:01:26.4]} 16. c4 {[%clk 0:02:02.1]} 16... dxc4 {[%clk
0:01:24.1]} 17. Ndxc4 {[%clk 0:01:54.1]} 17... Nd5 {[%clk 0:01:14.2]} 18. f4
{[%clk 0:01:38.7]} 18... g5 {[%clk 0:01:02.1]} 19. Qg4 {[%clk 0:01:33.5]} 19...
Bxe5 {[%clk 0:00:54]} 20. Nxe5 {[%clk 0:01:29.6]} 20... Qg7 {[%clk 0:00:54.1]}
21. Qxg5 {[%clk 0:01:19]} 21... Qxg5 {[%clk 0:00:54.1]} 22. fxg5 {[%clk
0:01:19.8]} 22... Rf5 {[%clk 0:00:51.8]} 23. Ng4 {[%clk 0:01:17.3]} 23... Ref8
{[%clk 0:00:49.3]} 1-0

[Event "Late-Titled-Tuesday-Blitz-September-12-2023"]
[Site "Chess.com"]
[Date "2023.09.12"]
[Round "6"]
[White "Arteler"]
[Black "traack"]
[Result "1-0"]
[WhiteElo "2480"]
[BlackElo "2360"]
[TimeControl "180+1"]
[EndTime "15:02:08 PDT"]
[Termination "Arteler won by resignation"]

1. e4 {[%clk 0:02:59.7]} 1... c5 {[%clk 0:02:48.4]} 2. Nf3 {[%clk 0:02:59.8]}
2... e6 {[%clk 0:02:48.1]} 3. c3 {[%clk 0:03:00.2]} 3... Nf6 {[%clk 0:02:46.9]}
4. e5 {[%clk 0:03:00.6]} 4... Nd5 {[%clk 0:02:46.6]} 5. d4 {[%clk 0:03:01.5]}
5... cxd4 {[%clk 0:02:46.3]} 6. cxd4 {[%clk 0:03:02.1]} 6... d6 {[%clk
0:02:46.7]} 7. Bc4 {[%clk 0:03:01.8]} 7... Be7 {[%clk 0:02:42.4]} 8. O-O {[%clk
0:02:59.8]} 8... O-O {[%clk 0:02:42.6]} 9. Nc3 {[%clk 0:02:59.5]} 9... Nxc3
{[%clk 0:02:42.1]} 10. bxc3 {[%clk 0:03:00.1]} 10... Nd7 {[%clk 0:02:42.1]} 11.
Qe2 {[%clk 0:03:00.5]} 11... Qc7 {[%clk 0:02:38.5]} 12. Bf4 {[%clk 0:02:56.6]}
12... dxe5 {[%clk 0:02:34.4]} 13. dxe5 {[%clk 0:02:56.9]} 13... b6 {[%clk
0:02:27]} 14. Nd4 {[%clk 0:02:52.8]} 14... Bb7 {[%clk 0:02:24.5]} 15. Rac1
{[%clk 0:02:39.9]} 15... Rac8 {[%clk 0:02:17.5]} 16. Bd3 {[%clk 0:02:39.2]}
16... Nc5 {[%clk 0:02:14.3]} 17. Bb1 {[%clk 0:02:38.8]} 17... Rfd8 {[%clk
0:01:58.5]} 18. Qg4 {[%clk 0:02:12]} 18... Bf8 {[%clk 0:01:36.4]} 19. Bg5 {[%clk
0:02:07.3]} 19... Rd5 {[%clk 0:01:27.3]} 20. f4 {[%clk 0:02:07.3]} 20... Na4
{[%clk 0:01:22.6]} 21. Be4 {[%clk 0:01:51.9]} 21... Rc5 {[%clk 0:01:04.3]} 22.
Bxb7 {[%clk 0:01:21.9]} 22... Qxb7 {[%clk 0:01:04.2]} 23. f5 {[%clk 0:01:22.5]}
23... exf5 {[%clk 0:00:59.5]} 24. Nxf5 {[%clk 0:01:22.7]} 24... Rxe5 {[%clk
0:00:48.7]} 25. Qxa4 {[%clk 0:01:21.9]} 25... Re2 {[%clk 0:00:40]} 26. Qg4
{[%clk 0:01:21.2]} 26... Rc4 {[%clk 0:00:32.6]} 27. Qxe2 {[%clk 0:01:20.2]} 1-0

[Event "Late-Titled-Tuesday-Blitz-September-12-2023"]
[Site "Chess.com"]
[Date "2023.09.12"]
[Round "6"]
[White "cukin84"]
[Black "Roberz12"]
[Result "1-0"]
[WhiteElo "2245"]
[BlackElo "2415"]
[TimeControl "180+1"]
[EndTime "15:02:09 PDT"]
[Termination "cukin84 won on time"]

1. e4 {[%clk 0:03:00.9]} 1... e6 {[%clk 0:03:00.4]} 2. d4 {[%clk 0:03:00.4]}
2... c5 {[%clk 0:02:59.4]} 3. d5 {[%clk 0:02:59.6]} 3... exd5 {[%clk 0:02:41.6]}
4. exd5 {[%clk 0:02:59.8]} 4... d6 {[%clk 0:02:41.6]} 5. Nf3 {[%clk 0:02:58.1]}
5... g6 {[%clk 0:02:38.9]} 6. Bf4 {[%clk 0:02:51.8]} 6... Bg7 {[%clk 0:02:38.3]}
7. Nc3 {[%clk 0:02:51.9]} 7... Ne7 {[%clk 0:02:37.7]} 8. Bb5+ {[%clk 0:02:49.6]}
8... Bd7 {[%clk 0:02:37]} 9. Qe2 {[%clk 0:02:44.2]} 9... O-O {[%clk 0:02:35.3]}
10. O-O {[%clk 0:02:43]} 10... a6 {[%clk 0:02:34]} 11. Bd3 {[%clk 0:02:37.5]}
11... Bg4 {[%clk 0:02:30.8]} 12. h3 {[%clk 0:02:36.2]} 12... Bxf3 {[%clk
0:02:31.1]} 13. Qxf3 {[%clk 0:02:36.5]} 13... b5 {[%clk 0:02:26.6]} 14. Rae1
{[%clk 0:02:33.5]} 14... c4 {[%clk 0:00:56.7]} 15. Be2 {[%clk 0:02:31.8]} 15...
Nf5 {[%clk 0:00:56.9]} 16. Bd1 {[%clk 0:02:27.6]} 16... Nd7 {[%clk 0:00:55.6]}
17. g4 {[%clk 0:02:23.7]} 17... Nd4 {[%clk 0:00:55.2]} 18. Qg3 {[%clk
0:02:20.4]} 18... Ne5 {[%clk 0:00:55.7]} 19. Be3 {[%clk 0:02:12.2]} 19... Nd7
{[%clk 0:00:50]} 20. Qxd6 {[%clk 0:02:06.8]} 20... Be5 {[%clk 0:00:49.6]} 21.
Qa3 {[%clk 0:01:47]} 21... Qb6 {[%clk 0:00:35.3]} 22. Qe7 {[%clk 0:01:32.9]} 1-0

[Event "Late-Titled-Tuesday-Blitz-September-12-2023"]
[Site "Chess.com"]
[Date "2023.09.12"]
[Round "6"]
[White "Alex_Banzea"]
[Black "platy3"]
[Result "0-1"]
[WhiteElo "2655"]
[BlackElo "2893"]
[TimeControl "180+1"]
[EndTime "15:02:10 PDT"]
[Termination "platy3 won by resignation"]

1. d4 {[%clk 0:03:00.9]} 1... Nf6 {[%clk 0:02:59.5]} 2. Nc3 {[%clk 0:03:01]}
2... d5 {[%clk 0:02:59.5]} 3. Bf4 {[%clk 0:03:01.7]} 3... c6 {[%clk 0:02:59.8]}
4. e3 {[%clk 0:03:02.2]} 4... Bf5 {[%clk 0:02:59.7]} 5. f3 {[%clk 0:03:02.8]}
5... h5 {[%clk 0:02:56.4]} 6. Bd3 {[%clk 0:03:02.7]} 6... Bxd3 {[%clk
0:02:55.7]} 7. Qxd3 {[%clk 0:03:03.6]} 7... Nbd7 {[%clk 0:02:56.2]} 8. Nge2
{[%clk 0:03:03.7]} 8... e6 {[%clk 0:02:48.8]} 9. e4 {[%clk 0:03:04]} 9... Qb6
{[%clk 0:02:47.4]} 10. O-O-O {[%clk 0:03:01.9]} 10... Be7 {[%clk 0:02:43.2]} 11.
Kb1 {[%clk 0:02:57.4]} 11... a5 {[%clk 0:02:43.1]} 12. e5 {[%clk 0:02:37]} 12...
Ng8 {[%clk 0:02:41.7]} 13. g4 {[%clk 0:02:34.8]} 13... h4 {[%clk 0:02:35.4]} 14.
Bc1 {[%clk 0:02:28.3]} 14... Qa6 {[%clk 0:02:31.3]} 15. h3 {[%clk 0:02:15.3]}
15... Qxd3 {[%clk 0:02:28.5]} 16. cxd3 {[%clk 0:02:16.2]} 16... b5 {[%clk
0:02:28.5]} 17. f4 {[%clk 0:02:15.8]} 17... Bd8 {[%clk 0:02:28.6]} 18. f5 {[%clk
0:02:06.3]} 18... Ne7 {[%clk 0:02:28.4]} 19. Rhf1 {[%clk 0:02:05.6]} 19... Bb6
{[%clk 0:02:28.4]} 20. Be3 {[%clk 0:02:02.2]} 20... Nxe5 {[%clk 0:02:16.8]} 21.
dxe5 {[%clk 0:01:44.5]} 21... Bxe3 {[%clk 0:02:16.7]} 22. d4 {[%clk 0:01:44.9]}
22... Kd7 {[%clk 0:02:10.1]} 23. f6 {[%clk 0:01:43.5]} 23... gxf6 {[%clk
0:02:06.2]} 24. Rxf6 {[%clk 0:01:44.4]} 24... Raf8 {[%clk 0:02:03.2]} 25. Rdf1
{[%clk 0:01:43.8]} 25... Ke8 {[%clk 0:01:54.8]} 26. Nc1 {[%clk 0:01:31.6]} 26...
Bxd4 {[%clk 0:01:53.1]} 27. Nd3 {[%clk 0:01:32]} 27... Ng6 {[%clk 0:01:51.3]}
28. Re1 {[%clk 0:01:27.2]} 28... Ke7 {[%clk 0:01:49.9]} 29. Rf3 {[%clk
0:01:26.8]} 29... f6 {[%clk 0:01:45.7]} 30. exf6+ {[%clk 0:01:01.5]} 30... Rxf6
{[%clk 0:01:45.6]} 31. Rf5 {[%clk 0:00:54.4]} 31... Kd6 {[%clk 0:01:40.1]} 32.
Rxf6 {[%clk 0:00:45.2]} 32... Bxf6 {[%clk 0:01:41]} 33. Rf1 {[%clk 0:00:35.7]}
33... Rf8 {[%clk 0:01:38.7]} 34. Ne2 {[%clk 0:00:30.2]} 34... Bg5 {[%clk
0:01:36.4]} 0-1

[Event "Late-Titled-Tuesday-Blitz-September-12-2023"]
[Site "Chess.com"]
[Date "2023.09.12"]
[Round "6"]
[White "only_strong_moves"]
[Black "Marielchessy"]
[Result "1-0"]
[WhiteElo "2496"]
[BlackElo "2328"]
[TimeControl "180+1"]
[EndTime "15:02:17 PDT"]
[Termination "only_strong_moves won by resignation"]

1. d4 {[%clk 0:03:00.9]} 1... Nf6 {[%clk 0:01:48.5]} 2. Nc3 {[%clk 0:03:00.1]}
2... d5 {[%clk 0:01:46.9]} 3. Bf4 {[%clk 0:02:59.5]} 3... c6 {[%clk 0:01:45.9]}
4. e3 {[%clk 0:02:58.3]} 4... e6 {[%clk 0:01:45.7]} 5. Nf3 {[%clk 0:02:58.9]}
5... b5 {[%clk 0:01:44.6]} 6. Bd3 {[%clk 0:02:59]} 6... a5 {[%clk 0:01:43]} 7.
O-O {[%clk 0:02:58.7]} 7... a4 {[%clk 0:01:42.1]} 8. a3 {[%clk 0:02:58.8]} 8...
Bd6 {[%clk 0:01:40.8]} 9. Bxd6 {[%clk 0:02:57.5]} 9... Qxd6 {[%clk 0:01:40.4]}
10. e4 {[%clk 0:02:58.4]} 10... dxe4 {[%clk 0:01:38.4]} 11. Nxe4 {[%clk
0:02:59.3]} 11... Nxe4 {[%clk 0:01:39]} 12. Bxe4 {[%clk 0:03:00.2]} 12... f5
{[%clk 0:01:39.1]} 13. Bd3 {[%clk 0:02:56.2]} 13... O-O {[%clk 0:01:38.9]} 14.
Re1 {[%clk 0:02:55.5]} 14... Nd7 {[%clk 0:01:37.2]} 15. c3 {[%clk 0:02:55]}
15... Nf6 {[%clk 0:01:36.1]} 16. Ne5 {[%clk 0:02:53.2]} 16... Re8 {[%clk
0:01:34.7]} 17. Qf3 {[%clk 0:02:51.7]} 17... Bb7 {[%clk 0:01:34.9]} 18. Bxb5
{[%clk 0:02:51.2]} 18... Nd5 {[%clk 0:01:26.2]} 19. Bc4 {[%clk 0:02:45.7]} 19...
Ba6 {[%clk 0:01:22.5]} 20. Bxd5 {[%clk 0:02:44.7]} 20... cxd5 {[%clk 0:01:22.6]}
21. Qd1 {[%clk 0:02:39.4]} 21... Bb5 {[%clk 0:01:17.9]} 22. Nd3 {[%clk
0:02:38.6]} 22... Bxd3 {[%clk 0:01:17]} 23. Qxd3 {[%clk 0:02:39.5]} 23... Rab8
{[%clk 0:01:16.8]} 24. Re2 {[%clk 0:02:39.7]} 24... Rb6 {[%clk 0:01:15]} 25.
Rae1 {[%clk 0:02:40.1]} 25... Kf7 {[%clk 0:01:13.4]} 26. h3 {[%clk 0:02:39]}
26... Qb8 {[%clk 0:01:10.9]} 27. g4 {[%clk 0:02:33.6]} 27... Rxb2 {[%clk
0:01:02]} 28. Rxb2 {[%clk 0:02:26.4]} 28... Qxb2 {[%clk 0:01:00.4]} 29. gxf5
{[%clk 0:02:27.1]} 29... Qxa3 {[%clk 0:00:55.4]} 30. fxe6+ {[%clk 0:02:26.3]}
30... Kg8 {[%clk 0:00:55.4]} 31. Qb5 {[%clk 0:02:22.8]} 31... Qe7 {[%clk
0:00:36.8]} 32. Qxa4 {[%clk 0:02:18.3]} 32... Qg5+ {[%clk 0:00:35.5]} 33. Kf1
{[%clk 0:02:18.5]} 33... Kf8 {[%clk 0:00:22.7]} 34. Qd7 {[%clk 0:02:12.1]} 34...
Qf6 {[%clk 0:00:15.9]} 35. Re5 {[%clk 0:02:08.9]} 35... Re7 {[%clk 0:00:11.8]}
36. Qd8+ {[%clk 0:02:07.1]} 36... Re8 {[%clk 0:00:12.1]} 37. e7+ {[%clk
0:02:02.8]} 37... Kf7 {[%clk 0:00:11.4]} 38. Qxd5+ {[%clk 0:02:03.5]} 38... Kg6
{[%clk 0:00:10.4]} 39. Re6 {[%clk 0:02:04.2]} 1-0

[Event "Late-Titled-Tuesday-Blitz-September-12-2023"]
[Site "Chess.com"]
[Date "2023.09.12"]
[Round "6"]
[White "Al_Shima"]
[Black "PawnEatingZombie"]
[Result "1-0"]
[WhiteElo "2343"]
[BlackElo "2194"]
[TimeControl "180+1"]
[EndTime "15:02:23 PDT"]
[Termination "Al_Shima won by resignation"]

1. e4 {[%clk 0:03:00.9]} 1... Nf6 {[%clk 0:02:59.8]} 2. Nc3 {[%clk 0:02:54.6]}
2... d5 {[%clk 0:02:58.5]} 3. e5 {[%clk 0:02:54.6]} 3... d4 {[%clk 0:02:56.7]}
4. exf6 {[%clk 0:02:54.9]} 4... dxc3 {[%clk 0:02:56.4]} 5. fxg7 {[%clk
0:02:54.5]} 5... cxd2+ {[%clk 0:02:56.9]} 6. Qxd2 {[%clk 0:02:54.1]} 6... Bxg7
{[%clk 0:02:57.4]} 7. Qxd8+ {[%clk 0:02:53.3]} 7... Kxd8 {[%clk 0:02:55.9]} 8.
Bd3 {[%clk 0:02:52.3]} 8... Nc6 {[%clk 0:02:47.3]} 9. Nf3 {[%clk 0:02:39.9]}
9... Nb4 {[%clk 0:02:43.1]} 10. Be4 {[%clk 0:02:31.7]} 10... f5 {[%clk
0:02:42.7]} 11. Bd3 {[%clk 0:02:28.8]} 11... Nxd3+ {[%clk 0:02:41.7]} 12. cxd3
{[%clk 0:02:29.7]} 12... e5 {[%clk 0:02:27.2]} 13. Bd2 {[%clk 0:02:25.8]} 13...
c6 {[%clk 0:02:24.7]} 14. Bc3 {[%clk 0:02:25.8]} 14... Re8 {[%clk 0:02:24.7]}
15. O-O-O {[%clk 0:02:24.2]} 15... Kc7 {[%clk 0:02:14.2]} 16. Rhe1 {[%clk
0:02:21.2]} 16... Bh6+ {[%clk 0:02:14.2]} 17. Kc2 {[%clk 0:02:19.6]} 17... e4
{[%clk 0:02:14.7]} 18. dxe4 {[%clk 0:02:10.5]} 18... fxe4 {[%clk 0:02:14.8]} 19.
Nd4 {[%clk 0:02:10.5]} 19... Bg4 {[%clk 0:02:05.4]} 20. Ra1 {[%clk 0:02:07.3]}
20... c5 {[%clk 0:01:40.1]} 21. Nb3 {[%clk 0:01:55.3]} 21... b6 {[%clk
0:01:37.4]} 22. Bd2 {[%clk 0:01:54.9]} 22... Bg7 {[%clk 0:01:30.3]} 23. Be3
{[%clk 0:01:54.6]} 23... Rad8 {[%clk 0:01:26]} 24. h3 {[%clk 0:01:53.8]} 24...
Bf5 {[%clk 0:01:25.2]} 25. g4 {[%clk 0:01:53.8]} 25... Bg6 {[%clk 0:01:25.4]}
26. Rad1 {[%clk 0:01:53.4]} 26... Kc6 {[%clk 0:01:22.7]} 27. Nd2 {[%clk
0:01:51.5]} 27... b5 {[%clk 0:01:18.5]} 28. Nb3 {[%clk 0:01:50.5]} 28... c4
{[%clk 0:01:12.3]} 29. Na5+ {[%clk 0:01:44.6]} 29... Kc7 {[%clk 0:01:03.1]} 30.
b3 {[%clk 0:01:43.6]} 30... cxb3+ {[%clk 0:00:47.7]} 31. axb3 {[%clk 0:01:43.2]}
31... Rxd1 {[%clk 0:00:39]} 32. Rxd1 {[%clk 0:01:42.8]} 32... a6 {[%clk
0:00:27.2]} 33. Kb1 {[%clk 0:01:39.6]} 33... h5 {[%clk 0:00:22.2]} 34. Rc1+
{[%clk 0:01:26.7]} 34... Kd6 {[%clk 0:00:16.9]} 35. Rc6+ {[%clk 0:01:25.8]} 1-0